bitfinex/quotes_SOLUSD_20240711
["timestamp","ask_amount","ask_price","bid_price","bid_amount"]
[1720694502221,23.07,143.01,142.93,6.0905]
[1720694509553,23.07,143.01,142.94,0.17]
[1720694511752,0.8423084,143.03,142.94,0.17]
[1720694511936,0.8423084,143.03,142.94,30.51]
[1720694513350,7.8338084,143.03,142.94,30.51]
[1720694513660,7.8338084,143.03,142.94,0.51]
[1720694514564,11.53,142.99,142.94,12.04]
[1720694517748,11.53,143.0,142.94,0.51]
[1720694518062,11.53,143.0,142.96,0.17]
[1720694518471,11.53,143.0,142.96,0.34]
[1720694518647,11.53,143.0,142.96,0.51]
[1720694519971,11.53,142.99,142.95,0.17]
[1720694520142,11.53,142.99,142.95,0.51]
[1720694520551,11.53,143.0,142.95,0.51]
[1720694522153,11.53,142.99,142.95,0.51]
[1720694523193,11.53,142.98,142.94,0.17]
[1720694523692,11.53,142.99,142.94,11.87]
[1720694524564,11.53,142.98,142.94,0.34]
[1720694525503,6.993,143.0,142.94,0.17]
[1720694525785,11.53,142.95,142.93,6.0905]
[1720694526393,46.12,143.01,142.93,6.0905]
[1720694526394,6.9925,143.01,142.93,6.0905]
[1720694526570,11.53,142.97,142.93,6.0905]
[1720694527378,11.53,142.97,142.94,0.17]
[1720694527775,6.9921,143.02,142.94,0.17]
[1720694528087,11.53,142.98,142.94,0.34]
[1720694528781,6.992,143.02,142.94,0.34]
[1720694528999,7.8339084,143.03,142.94,11.87]
[1720694529292,7.8339084,143.03,142.94,41.87]
[1720694529293,11.53,142.99,142.94,41.87]
[1720694529695,11.53,142.99,142.94,30.34]
[1720694530375,11.53,142.98,142.94,30.34]
[1720694530885,11.53,142.98,142.94,0.34]
[1720694531593,11.53,142.96,142.94,0.17]
[1720694534900,11.53,143.01,142.94,0.17]
[1720694535081,11.53,142.97,142.94,0.17]
[1720694535281,11.53,142.98,142.94,0.17]
[1720694537479,0.8423084,143.03,142.94,0.17]
[1720694537679,11.53,143.0,142.95,11.53]
[1720694537890,11.53,143.0,142.96,0.17]
[1720694541505,11.53,142.99,142.95,0.17]
[1720694541677,11.53,142.99,142.95,0.51]
[1720694542184,11.53,142.98,142.94,30.0]
[1720694542383,11.53,142.96,142.94,30.0]
[1720694543406,11.53,142.96,142.93,6.0905]
[1720694546012,11.53,142.97,142.93,6.0905]
[1720694547726,15.6654,143.01,142.93,6.0905]
[1720694548014,11.53,142.98,142.94,30.0]
[1720694548195,11.53,142.97,142.94,30.0]
[1720694549420,11.53,142.97,142.93,6.0905]
[1720694549621,11.53,142.98,142.93,6.0905]
[1720694549994,11.53,142.98,142.94,0.17]
[1720694550491,11.53,142.98,142.93,6.0905]
[1720694551301,11.53,142.98,142.93,17.6205]
[1720694552320,11.53,142.98,142.93,6.0905]
[1720694553219,11.53,142.97,142.93,6.0905]
[1720694555198,27.1954,143.01,142.93,6.0905]
[1720694555413,11.53,142.99,142.93,17.6205]
[1720694555620,11.53,142.99,142.94,11.53]
[1720694556214,0.8423084,143.03,142.94,11.53]
[1720694556523,11.53,143.0,142.95,11.53]
[1720694557326,11.53,142.98,142.93,17.6205]
[1720694557501,11.53,142.98,142.94,0.34]
[1720694560826,11.53,142.98,142.93,17.6205]
[1720694561002,6.9928,143.01,142.93,6.0905]
[1720694561003,11.53,142.97,142.93,6.0905]
[1720694564637,11.53,142.98,142.93,17.6205]
[1720694565437,11.53,142.97,142.93,6.0905]
[1720694568340,11.53,142.98,142.93,6.0905]
[1720694568838,11.53,142.97,142.92,24.9551]
[1720694569042,11.53,142.97,142.92,24.7851]
[1720694570741,11.53,142.97,142.92,13.2551]
[1720694570942,11.53,142.97,142.92,24.7851]
[1720694573229,11.53,142.97,142.93,1.39562698]
[1720694573857,11.53,142.97,142.92,24.7851]
[1720694574061,11.53,143.01,142.9,7.31155265]
[1720694574062,11.53,142.96,142.9,7.31155265]
[1720694574350,11.53,142.95,142.9,18.84155265]
[1720694575144,11.53,142.95,142.9,7.31155265]
[1720694575329,11.53,142.95,142.89,17.5971]
[1720694576824,11.53,142.95,142.9,11.53]
[1720694577135,11.53,142.96,142.91,11.53]
[1720694577342,16.0861,142.99,142.91,11.53]
[1720694577523,16.0861,142.99,142.9,0.17]
[1720694577723,11.53,142.98,142.92,11.53]
[1720694579533,11.53,142.96,142.9,0.34]
[1720694579735,11.53,142.95,142.9,41.87]
[1720694581264,11.53,142.95,142.9,11.87]
[1720694582049,11.53,142.96,142.9,11.87]
[1720694582251,11.53,142.96,142.9,0.34]
[1720694583066,11.53,142.96,142.9,30.34]
[1720694585162,11.53,142.96,142.9,0.34]
[1720694586143,18.80920733,142.99,142.9,0.34]
[1720694586649,11.53,142.97,142.9,0.34]
[1720694586961,11.53,142.96,142.9,0.34]
[1720694588267,11.53,142.96,142.9,30.34]
[1720694588648,24.41943913,143.02,142.94,11.53]
[1720694588847,16.1485,143.02,142.94,11.53]
[1720694589046,11.53,142.99,142.94,11.53]
[1720694589669,11.53,142.98,142.93,24.7851]
[1720694589868,11.53,142.98,142.93,13.2551]
[1720694590079,11.53,142.97,142.92,11.53]
[1720694590281,11.53,142.97,142.91,11.7]
[1720694590451,11.53,142.96,142.91,11.7]
[1720694590645,11.53,142.96,142.92,30.0]
[1720694591352,11.53,142.96,142.91,11.7]
[1720694593569,11.53,142.96,142.91,0.17]
[1720694593750,11.53,142.96,142.9,30.34]
[1720694593951,11.53,142.96,142.91,11.53]
[1720694596264,11.53,142.96,142.9,30.34]
[1720694596465,11.53,142.96,142.91,11.53]
[1720694596871,6.5402,143.0,142.91,11.53]
[1720694597059,11.53,142.97,142.92,11.7]
[1720694597549,6.5402,143.0,142.9,30.17]
[1720694597753,11.53,142.95,142.9,41.7]
[1720694598574,11.53,142.95,142.9,30.17]
[1720694599074,11.53,142.95,142.9,41.7]
[1720694599277,11.53,142.96,142.9,41.7]
[1720694599587,11.53,142.96,142.9,11.7]
[1720694599963,6.5402,143.0,142.91,0.17]
[1720694600164,6.5402,143.0,142.93,11.53]
[1720694600356,11.53,142.98,142.93,11.53]
[1720694600856,11.53,142.98,142.91,0.17]
[1720694601057,11.53,142.98,142.93,11.53]
[1720694601758,11.53,142.99,142.93,11.53]
[1720694601956,11.53,142.99,142.92,0.34]
[1720694601957,11.53,142.99,142.94,11.53]
[1720694605659,18.89204573,143.02,142.94,11.53]
[1720694605862,11.53,142.98,142.94,11.53]
[1720694606671,11.53,142.99,142.94,11.53]
[1720694607369,18.89204573,143.02,142.94,11.53]
[1720694607569,11.53,142.99,142.94,11.53]
[1720694608180,18.89204573,143.02,142.95,11.53]
[1720694608576,11.53,143.01,142.96,11.53]
[1720694609463,11.03,143.01,142.96,11.53]
[1720694610294,18.89204573,143.02,142.97,1.39005046]
[1720694610581,18.89204573,143.02,142.97,11.53]
[1720694610582,30.42204573,143.02,142.97,11.53]
[1720694610802,11.53,143.01,142.96,11.53]
[1720694612492,11.53,143.0,142.95,11.53]
[1720694612795,11.53,142.98,142.94,0.34]
[1720694613083,11.53,142.99,142.94,11.7]
[1720694614266,11.53,142.99,142.94,0.17]
[1720694615490,16.1485,143.02,142.94,41.7]
[1720694615675,11.53,142.99,142.94,41.7]
[1720694616790,16.1485,143.02,142.94,41.7]
[1720694616990,11.53,142.99,142.94,41.7]
[1720694618586,16.1485,143.02,142.94,41.7]
[1720694618792,11.53,143.0,142.95,11.53]
[1720694619484,16.1485,143.02,142.96,11.7]
[1720694619693,16.1485,143.02,142.97,11.53]
[1720694619867,27.6785,143.02,142.97,11.53]
[1720694620184,11.53,143.02,142.97,11.53]
[1720694620385,0.8423084,143.03,142.97,11.53]
[1720694620695,12.3723084,143.03,142.98,11.53]
[1720694621072,0.8423084,143.03,143.0,11.53]
[1720694621271,0.8423084,143.03,142.99,11.53]
[1720694622270,12.3723084,143.03,142.98,31.0724]
[1720694622472,12.3723084,143.03,142.99,30.17]
[1720694622674,12.3723084,143.03,142.99,0.17]
[1720694623291,12.3723084,143.03,142.98,30.9024]
[1720694623292,11.53,143.02,142.94,19.6633]
[1720694623586,11.53,143.02,142.98,30.0]
[1720694623791,11.53,143.02,142.97,11.53]
[1720694623974,0.8423084,143.03,142.98,11.7]
[1720694624184,12.3723084,143.03,142.98,11.7]
[1720694624569,0.8423084,143.03,142.99,11.53]
[1720694625087,12.3723084,143.03,142.98,11.7]
[1720694625286,0.8423084,143.03,142.99,11.53]
[1720694628400,0.8423084,143.03,143.0,0.17]
[1720694629197,0.8423084,143.03,143.01,11.53]
[1720694629403,0.8423084,143.03,143.0,0.17]
[1720694629618,0.8423084,143.03,143.0,11.7]
[1720694630270,0.8423084,143.03,143.0,0.17]
[1720694631096,12.3723084,143.03,143.0,0.17]
[1720694631391,12.3723084,143.03,142.99,30.17]
[1720694631692,11.53,143.02,142.97,11.53]
[1720694631884,12.3723084,143.03,142.98,11.87]
[1720694632284,11.53,143.02,142.98,0.34]
[1720694632483,11.53,143.01,142.98,30.0]
[1720694632879,0.8423084,143.03,142.98,30.0]
[1720694633085,0.8423084,143.03,142.95,11.53]
[1720694633086,11.53,143.0,142.95,11.53]
[1720694633384,11.53,143.0,142.96,30.0]
[1720694633595,11.53,143.01,142.96,41.53]
[1720694633994,11.53,143.01,142.97,0.17]
[1720694634195,11.53,143.01,142.97,0.34]
[1720694634405,11.53,143.02,142.97,11.87]
[1720694636687,11.53,143.02,142.97,0.34]
[1720694636887,11.53,143.02,142.97,30.34]
[1720694637415,11.53,143.02,142.97,30.0]
[1720694637708,11.53,143.0,142.95,11.53]
[1720694637918,11.53,143.01,142.96,11.53]
[1720694639009,11.53,143.01,142.97,0.17]
[1720694639396,11.53,143.01,142.97,30.17]
[1720694641304,11.53,143.02,142.98,0.53047756]
[1720694641709,11.53,143.02,142.99,0.54178321]
[1720694642088,11.53,143.02,142.97,11.7]
[1720694642494,11.53,143.01,142.97,0.17]
[1720694643112,11.53,143.01,142.96,11.53]
[1720694643500,11.53,143.02,142.97,11.53]
[1720694643812,11.53,143.01,142.96,11.53]
[1720694644005,11.53,143.01,142.97,30.0]
[1720694644614,11.53,143.0,142.97,30.0]
[1720694645329,11.53,143.01,142.97,30.0]
[1720694645501,11.53,143.01,142.96,30.0]
[1720694645701,0.8423084,143.03,142.96,30.0]
[1720694645702,11.53,142.99,142.96,30.0]
[1720694646919,11.53,143.0,142.96,30.0]
[1720694647119,11.53,143.0,142.95,11.53]
[1720694647708,15.3455,143.02,142.94,0.34]
[1720694647912,11.53,142.98,142.94,30.0]
[1720694648114,11.53,142.97,142.94,30.0]
[1720694648313,11.53,142.97,142.93,11.53]
[1720694648617,11.53,142.98,142.93,11.53]
[1720694648824,11.53,142.98,142.9,26.7700262]
[1720694649012,11.53,142.97,142.9,26.7700262]
[1720694649216,11.53,142.97,142.92,11.53]
[1720694649396,11.53,142.97,142.92,41.53]
[1720694649813,11.53,142.97,142.92,30.0]
[1720694650025,11.53,142.97,142.92,41.53]
[1720694651523,11.53,142.98,142.93,11.53]
[1720694652320,11.53,143.01,142.93,11.53]
[1720694652624,11.53,142.98,142.93,11.53]
[1720694653124,11.53,142.97,142.92,41.53]
[1720694653527,11.53,142.97,142.92,30.0]
[1720694653715,11.53,142.97,142.92,41.53]
[1720694654918,46.12,143.01,142.92,41.53]
[1720694655428,46.12,143.01,142.93,11.53]
[1720694656130,46.12,143.01,142.92,41.53]
[1720694657136,11.53,142.98,142.93,11.53]
[1720694658032,25.05745692,143.02,142.93,11.53]
[1720694658235,11.53,142.98,142.93,11.53]
[1720694658928,11.53,142.98,142.92,30.0]
[1720694658929,15.3455,143.02,142.96,11.53]
[1720694659140,0.8423084,143.03,142.96,13.0851]
[1720694659323,0.8423084,143.03,143.02,11.53]
[1720694659520,0.8423084,143.03,143.02,6.0115]
[1720694659828,0.8423084,143.03,143.02,17.7115]
[1720694660061,0.8423084,143.03,143.02,117.8815]
[1720694660239,0.8423084,143.03,143.02,147.8815]
[1720694660611,15.0404,143.16,143.04,121.05]
[1720694660802,15.0404,143.16,143.1,11.53]
[1720694661010,21.7405,143.2,143.08,100.0]
[1720694661233,28.7237,143.2,143.12,11.53]
[1720694661409,21.7405,143.2,143.05,100.0]
[1720694661620,11.53,143.15,143.1,11.53]
[1720694662211,11.53,143.14,143.09,11.53]
[1720694664816,7.8270084,143.17,143.09,11.53]
[1720694665015,11.53,143.14,143.09,11.53]
[1720694665514,11.53,143.15,143.1,11.53]
[1720694666419,0.8423084,143.17,143.1,11.53]
[1720694666626,11.53,143.15,143.1,11.53]
[1720694668740,0.8423084,143.17,143.13,11.53]
[1720694669119,0.8423084,143.17,143.07,24.566578]
[1720694669329,11.53,143.15,143.1,11.53]
[1720694669824,0.8423084,143.17,143.1,11.53]
[1720694670138,0.8423084,143.17,143.08,11.7]
[1720694670340,0.8423084,143.17,143.13,11.53]
[1720694671049,0.8423084,143.17,143.14,11.53]
[1720694671423,0.8423084,143.17,143.13,11.53]
[1720694672740,0.8423084,143.17,143.14,11.53]
[1720694672946,0.8423084,143.17,143.15,11.53]
[1720694673115,0.8423084,143.17,143.16,11.53]
[1720694674138,0.8423084,143.17,143.16,30.0]
[1720694674937,0.8423084,143.17,143.15,11.53]
[1720694675349,0.8423084,143.17,143.16,11.53]
[1720694677521,0.8423084,143.17,143.11,121.7405]
[1720694677724,0.8423084,143.17,143.16,11.53]
[1720694682034,0.8423084,143.17,143.13,30.0]
[1720694682348,0.8423084,143.17,143.16,11.53]
[1720694683247,0.8423084,143.17,143.13,52.4066]
[1720694683450,0.8423084,143.17,143.16,11.53]
[1720694685845,0.8423084,143.17,143.13,30.0]
[1720694686161,0.8423084,143.17,143.16,11.53]
[1720694688056,0.8423084,143.17,143.16,12.92016079]
[1720694688560,0.8423084,143.17,143.16,11.53]
[1720694690268,0.8423084,143.17,143.16,41.53]
[1720694691950,0.8423084,143.17,143.16,30.0]
[1720694692156,0.8423084,143.17,143.16,41.53]
[1720694695079,0.8423084,143.17,143.16,30.0]
[1720694695241,0.8423084,143.17,143.16,41.53]
[1720694695640,0.8423084,143.17,143.16,30.0]
[1720694697251,0.8423084,143.17,143.16,41.53]
[1720694701471,0.8423084,143.17,143.16,41.7]
[1720694702270,0.8423084,143.17,143.16,41.53]
[1720694703375,0.8423084,143.17,143.16,40.53]
[1720694703681,0.8423084,143.17,143.16,29.0]
[1720694703849,0.8423084,143.17,143.16,40.53]
[1720694710187,0.8423084,143.17,143.16,40.87]
[1720694710480,0.8423084,143.17,143.16,40.7]
[1720694710659,0.8423084,143.17,143.16,29.17]
[1720694710859,0.8423084,143.17,143.16,40.7]
[1720694711362,0.8423084,143.17,143.16,29.17]
[1720694711574,0.8423084,143.17,143.16,40.7]
[1720694712757,0.8423084,143.17,143.16,40.53]
[1720694714274,0.8423084,143.17,143.16,29.0]
[1720694714481,0.8423084,143.17,143.16,40.53]
[1720694714685,0.8423084,143.17,143.16,29.0]
[1720694715057,0.8423084,143.17,143.15,11.53]
[1720694715285,16.2987,143.16,143.11,16.3079]
[1720694715458,16.2987,143.16,143.15,11.53]
[1720694717580,16.2987,143.16,143.11,16.3079]
[1720694717966,16.2987,143.16,143.13,11.53]
[1720694718286,16.2987,143.16,143.11,16.3079]
[1720694718489,16.2987,143.16,143.12,11.53]
[1720694719271,16.2987,143.16,143.09,16.2987]
[1720694719467,16.2987,143.16,143.12,11.53]
[1720694720186,16.2987,143.16,143.13,11.53]
[1720694721279,16.2987,143.16,143.09,16.2987]
[1720694721580,16.2987,143.16,143.13,11.53]
[1720694724574,16.2987,143.16,143.12,11.53]
[1720694724895,11.53,143.15,143.1,11.53]
[1720694726587,11.53,143.15,143.07,16.2987]
[1720694727193,6.6205,143.13,143.09,11.53]
[1720694727381,6.6205,143.13,143.08,11.53]
[1720694728477,6.6205,143.13,143.09,11.53]
[1720694731195,6.6205,143.13,143.1,11.53]
[1720694731711,6.6205,143.13,143.11,11.53]
[1720694731870,37.01556001,143.16,143.11,11.53]
[1720694732509,25.48556001,143.16,143.08,11.53]
[1720694732721,22.7056,143.16,143.08,11.53]
[1720694733010,22.7056,143.16,143.14,11.53]
[1720694733175,22.7056,143.16,143.13,11.53]
[1720694733589,22.7056,143.16,143.08,46.12]
[1720694733792,22.7056,143.16,143.13,11.53]
[1720694733990,22.7056,143.16,143.12,11.53]
[1720694734802,22.7056,143.16,143.13,11.53]
[1720694735176,22.7056,143.16,143.14,30.0]
[1720694735578,16.2987,143.16,143.15,11.53]
[1720694736179,16.2987,143.16,143.15,41.53]
[1720694737204,16.2987,143.16,143.15,30.0]
[1720694738902,16.2987,143.16,143.15,41.53]
[1720694739396,0.8423084,143.17,143.15,41.53]
[1720694741802,0.8423084,143.17,143.15,30.0]
[1720694742012,0.8423084,143.17,143.15,41.53]
[1720694742183,0.8423084,143.17,143.16,11.53]
[1720694742517,0.8423084,143.17,143.16,30.0]
[1720694742999,0.8423084,143.17,143.16,41.53]
[1720694744509,0.8423084,143.17,143.16,30.0]
[1720694746585,0.8423084,143.17,143.16,41.53]
[1720694751816,0.8423084,143.17,143.16,30.0]
[1720694752629,16.0253084,143.17,143.16,30.0]
[1720694755919,16.0253084,143.17,143.15,11.53]
[1720694757135,16.0253084,143.17,143.16,11.53]
[1720694757839,0.8423084,143.17,143.16,11.53]
[1720694759001,0.8423084,143.17,143.15,11.53]
[1720694759710,0.8423084,143.17,143.09,6.0732]
[1720694759933,12.3723084,143.17,143.08,19.53744782]
[1720694760106,12.3723084,143.17,143.12,11.53]
[1720694760527,0.8423084,143.17,143.13,11.53]
[1720694761211,0.8423084,143.17,143.14,11.53]
[1720694761829,0.8423084,143.17,143.15,11.53]
[1720694762413,0.8423084,143.17,143.14,11.53]
[1720694763141,0.8423084,143.17,143.15,11.53]
[1720694763645,0.8423084,143.17,143.08,41.45944782]
[1720694763837,0.8423084,143.17,143.13,11.53]
[1720694764015,0.8423084,143.17,143.14,11.53]
[1720694764213,0.8423084,143.17,143.15,11.53]
[1720694764528,0.8423084,143.17,143.16,11.53]
[1720694768419,0.8423084,143.17,143.15,11.53]
[1720694768619,0.8423084,143.17,143.16,11.53]
[1720694770544,0.8423084,143.17,143.14,11.53]
[1720694770719,0.8423084,143.17,143.1,7.29796992]
[1720694770720,0.8423084,143.17,143.13,11.53]
[1720694771117,0.8423084,143.17,143.08,47.52983238]
[1720694771424,0.8423084,143.17,143.13,11.53]
[1720694773355,0.8423084,143.17,143.14,11.53]
[1720694773644,0.8423084,143.17,143.15,11.53]
[1720694774216,0.8423084,143.17,143.16,11.53]
[1720694775719,0.8423084,143.17,143.16,41.53]
[1720694780747,0.8423084,143.17,143.16,30.0]
[1720694785650,0.8423084,143.17,143.13,11.53]
[1720694785854,0.8423084,143.17,143.14,30.0]
[1720694787749,11.53,143.16,143.14,30.0]
[1720694788741,11.53,143.16,143.12,30.0]
[1720694790451,12.3723084,143.17,143.12,41.53]
[1720694792146,0.8423084,143.17,143.13,11.53]
[1720694792339,0.8423084,143.17,143.14,30.0]
[1720694800042,0.8423084,143.17,143.14,41.53]
[1720694800354,0.8423084,143.17,143.16,11.53]
[1720694800653,0.8423084,143.17,143.16,41.53]
[1720694800857,0.8423084,143.17,143.16,30.0]
[1720694801033,0.8423084,143.17,143.16,41.53]
[1720694801842,0.8423084,143.17,143.16,30.0]
[1720694802680,0.8423084,143.17,143.16,41.53]
[1720694803953,0.8423084,143.17,143.16,41.7]
[1720694806242,0.8423084,143.17,143.16,30.17]
[1720694806541,0.8423084,143.17,143.16,41.7]
[1720694806748,0.8423084,143.17,143.16,42.05203734]
[1720694807773,0.8423084,143.17,143.16,42.22203734]
[1720694808063,0.8423084,143.17,143.16,41.87]
[1720694808272,0.8423084,143.17,143.16,41.53]
[1720694808651,0.8423084,143.17,143.16,30.0]
[1720694808962,0.8423084,143.17,143.16,41.53]
[1720694810062,0.8423084,143.17,143.16,30.0]
[1720694810567,0.8423084,143.17,143.16,41.53]
[1720694811450,0.8423084,143.17,143.16,30.0]
[1720694811752,0.8423084,143.17,143.16,41.53]
[1720694812442,0.8423084,143.17,143.16,30.0]
[1720694812647,0.8423084,143.17,143.16,41.53]
[1720694813064,0.8423084,143.17,143.16,41.7]
[1720694818150,0.8423084,143.17,143.16,41.87]
[1720694824658,0.8423084,143.17,143.16,141.87]
[1720694825391,16.5572,143.24,143.16,162.92]
[1720694825672,16.5572,143.24,143.23,11.53]
[1720694825878,16.5572,143.24,143.23,41.53]
[1720694829678,15.8792,143.3,143.23,41.53]
[1720694829977,15.8792,143.3,143.26,11.53]
[1720694830200,15.8792,143.3,143.26,41.53]
[1720694834667,11.53,143.29,143.26,30.0]
[1720694834867,11.53,143.28,143.26,30.0]
[1720694835382,18.5088,143.29,143.26,30.0]
[1720694835578,27.7492,143.3,143.26,30.0]
[1720694835757,27.5792,143.3,143.25,11.53]
[1720694836163,11.87,143.29,143.24,11.53]
[1720694836378,11.7,143.29,143.24,11.53]
[1720694836590,18.5089,143.29,143.24,11.53]
[1720694836802,11.53,143.29,143.24,11.53]
[1720694837488,27.5792,143.3,143.25,11.53]
[1720694837793,34.5576,143.3,143.25,11.53]
[1720694838188,34.5576,143.3,143.21,30.0]
[1720694838189,11.53,143.29,143.24,11.53]
[1720694838863,11.53,143.29,143.25,30.0]
[1720694839696,22.8576,143.3,143.25,30.0]
[1720694839878,11.53,143.29,143.25,30.0]
[1720694841170,11.53,143.28,143.25,30.0]
[1720694843893,22.8575,143.3,143.25,30.0]
[1720694844187,11.53,143.29,143.25,30.0]
[1720694844592,27.4092,143.3,143.25,41.53]
[1720694845990,15.8792,143.3,143.25,41.53]
[1720694846169,15.8792,143.3,143.26,11.53]
[1720694846366,15.8792,143.3,143.26,41.53]
[1720694847688,15.8792,143.3,143.27,11.53]
[1720694847893,15.8792,143.3,143.27,41.53]
[1720694848196,15.8792,143.3,143.27,30.0]
[1720694848380,15.8792,143.3,143.28,11.53]
[1720694849302,0.8423084,143.31,143.28,11.53]
[1720694849691,0.8423084,143.31,143.28,41.53]
[1720694850386,0.8423084,143.31,143.28,30.0]
[1720694850775,12.3723084,143.31,143.28,30.0]
[1720694851813,11.53,143.3,143.28,30.0]
[1720694852186,12.3723084,143.31,143.28,30.0]
[1720694852816,12.3723084,143.31,143.27,30.0]
[1720694860830,0.8423084,143.31,143.27,41.53]
[1720694863530,0.8423084,143.31,143.28,11.53]
[1720694863698,0.8423084,143.31,143.28,41.53]
[1720694863894,0.8423084,143.31,143.28,30.0]
[1720694864407,12.3723084,143.31,143.28,30.0]
[1720694867404,0.8423084,143.31,143.28,30.0]
[1720694868829,0.8423084,143.31,143.26,11.53]
[1720694869003,0.8423084,143.31,143.27,30.0]
[1720694869804,12.3723084,143.31,143.27,30.0]
[1720694870633,0.8423084,143.31,143.27,30.0]
[1720694875025,12.3723084,143.31,143.27,30.0]
[1720694875412,0.8423084,143.31,143.27,30.0]
[1720694875614,0.8423084,143.31,143.3,11.53]
[1720694875922,0.8423084,143.31,143.3,41.53]
[1720694876310,0.8423084,143.31,143.3,30.0]
[1720694876509,0.8423084,143.31,143.3,41.53]
[1720694876732,0.8423084,143.31,143.3,30.0]
[1720694878023,12.3723084,143.31,143.3,30.0]
[1720694878936,12.3723084,143.31,143.26,11.53]
[1720694879106,12.3723084,143.31,143.28,30.0]
[1720694880106,11.53,143.29,143.28,30.0]
[1720694880303,11.53,143.29,143.21,7.28164599]
[1720694880532,11.53,143.27,143.23,30.0]
[1720694882136,11.53,143.28,143.23,41.53]
[1720694884037,15.5278,143.25,143.23,30.0]
[1720694884244,11.53,143.24,143.23,19.37821181]
[1720694884708,15.5278,143.25,143.23,19.37821181]
[1720694886309,15.5278,143.25,143.18,1.2971305]
[1720694886512,15.7993,143.28,143.2,30.0]
[1720694886826,11.53,143.27,143.22,11.53]
[1720694887019,27.3293,143.28,143.23,12.83196607]
[1720694887327,27.3293,143.28,143.23,11.53]
[1720694887835,15.7993,143.28,143.24,1.3016934]
[1720694888043,15.7993,143.28,143.24,11.53]
[1720694888526,15.7993,143.28,143.25,1.30132995]
[1720694889334,27.3293,143.28,143.23,11.53]
[1720694890129,11.53,143.27,143.22,11.53]
[1720694890621,27.3293,143.28,143.23,11.53]
[1720694891438,15.7993,143.28,143.24,11.53]
[1720694892233,0.8423084,143.31,143.26,11.53]
[1720694892433,12.3723084,143.31,143.26,11.53]
[1720694892813,0.8423084,143.31,143.27,11.53]
[1720694893439,0.8423084,143.31,143.27,41.53]
[1720694894325,0.8423084,143.31,143.29,11.53]
[1720694894646,0.8423084,143.31,143.29,41.53]
[1720694895342,0.8423084,143.31,143.29,30.0]
[1720694895529,0.8423084,143.31,143.27,11.53]
[1720694896524,0.8423084,143.31,143.22,46.12]
[1720694896725,12.3723084,143.31,143.26,11.53]
[1720694897339,12.3723084,143.31,143.24,30.0]
[1720694897519,12.3723084,143.31,143.26,11.53]
[1720694898255,0.8423084,143.31,143.27,11.53]
[1720694899735,12.3723084,143.31,143.26,11.53]
[1720694901547,12.3723084,143.31,143.27,11.53]
[1720694902827,0.8423084,143.31,143.27,11.53]
[1720694903147,0.8423084,143.31,143.24,30.0]